[Event "7th Francophone-ch 2019"]
[Site "Paris"]
[Date "2019.08.05"]
[Round "2.5"]
[White "Flom, Gabriel"]
[Black "Lebrun, Xavier"]
[Result "1-0"]
[ECO "D03"]
[WhiteElo "2494"]
[BlackElo "2059"]
[Annotator "ChessBase"]
[PlyCount "58"]
[EventDate "2019.08.04"]
[EventType "swiss"]
[EventCountry "FRA"]
[SourceTitle "playchess.com"]
[Source "ChessBase"]
[SourceQuality "1"]
[TimeControl "40/5400+30:1800+30"]

1. d4 {[%emt 0:00:00]} Nf6 {[%emt 0:01:09]} 2. Bg5 {[%emt 0:00:00]} e6 {[%emt 0:02:02]} 3. Nd2 {[%emt 0:00:00]} d5 {[%emt 0:04:13]} 4. e3 {[%emt 0:00:00]} Be7 {[%emt 0:04:00]} 5. Bd3 {[%emt 0:00:05]} Nbd7 {[%emt 0:12:30]} 6. Ngf3 {[%emt 0:00:26]} b6 {[%emt 0:03:47]} 7. c3 {[%emt 0:03:23]} Bb7 {[%emt 0:04:06]} 8. O-O {[%emt 0:01:09]} Ne4 {[%emt 0:07:47]} 9. Bxe7 {[%emt 0:00:31]} Qxe7 {[%emt 0:00:08]} 10. c4 {[%emt 0:00:11]} Nxd2 {[%emt 0:01:49]} 11. Qxd2 {[%emt 0:00:43]} dxc4 12. Bxc4 {[%emt 0:00:03]} O-O {[%emt 0:14:59]} 13. Qe2 {[%emt 0:00:08]} c5 {[%emt 0:01:37]} 14. Ba6 {[%emt 0:00:02]} Bxf3 {[%emt 0:06:35]} 15. Qxf3 {[%emt 0:00:07]} cxd4 {[%emt 0:00:05]} 16. exd4 {[%emt 0:00:01]} Nf6 {[%emt 0:00:07]} 17. Rac1 {[%emt 0:03:01]} Nd5 {[%emt 0:01:14]} 18. a3 {[%emt 0:02:21]} Rfd8 {[%emt 0:02:13]} 19. Rc4 {[%emt 0:01:16]} Rd6 {[%emt 0:02:01]} 20. Rfc1 {[%emt 0:00:25]} Rad8 {[%emt 0:00:30]} 21. b4 {[%emt 0:01:25]} g6 {[%emt 0:01:01]} 22. g3 {[%emt 0:00:30]} Kg7 {[%emt 0:02:24]} 23. Qe4 {[%emt 0:02:40]} Nf6 {[%emt 0:05:47]} 24. Qe3 {[%emt 0:03:08]} Nd5 {[%emt 0:07:53]} 25. Qe5+ {[%emt 0:02:11]} Qf6 {[%emt 0:00:46]} 26. Rc6 {[%emt 0:02:24]} Rxc6 {[%emt 0:01:30]} 27. Rxc6 {[%emt 0:00:05]} Rd7 {[%emt 0:00:20]} 28. Rc8 {[%emt 0:01:27]} Ne7 {[%emt 0:00:47]} 29. Ra8 {[%emt 0:01:03]} Nf5 {[%emt 0:03:04]} 1-0

[Event "7th Francophone-ch 2019"]
[Site "Paris"]
[Date "2019.08.05"]
[Round "2.6"]
[White "Van Houtte, Thierry"]
[Black "Vedmediuc, Serghei"]
[Result "0-1"]
[ECO "A37"]
[WhiteElo "2077"]
[BlackElo "2450"]
[Annotator "ChessBase"]
[PlyCount "50"]
[EventDate "2019.08.04"]
[EventType "swiss"]
[EventCountry "FRA"]
[SourceTitle "playchess.com"]
[Source "ChessBase"]
[SourceQuality "1"]
[TimeControl "40/5400+30:1800+30"]

1. Nf3 {[%emt 0:00:00]} c5 {[%emt 0:04:50]} 2. g3 {[%emt 0:00:23]} Nc6 {[%emt 0:00:05]} 3. Bg2 {[%emt 0:00:11]} g6 {[%emt 0:00:05]} 4. O-O {[%emt 0:00:20]} Bg7 {[%emt 0:00:02]} 5. c4 {[%emt 0:00:30]} e6 {[%emt 0:00:05]} 6. Nc3 {[%emt 0:00:21]} Nge7 {[%emt 0:00:05]} 7. d4 {[%emt 0:05:46]} Nxd4 {[%emt 0:14:19]} 8. Nxd4 {[%emt 0:00:39]} cxd4 {[%emt 0:00:04]} 9. Nb5 {[%emt 0:00:26]} Nf5 {[%emt 0:00:05]} 10. Bg5 {[%emt 0:03:47]} f6 {[%emt 0:13:56]} 11. Bf4 {[%emt 0:00:46]} e5 {[%emt 0:01:10]} 12. e4 {[%emt 0:01:30]} Nh6 {[%emt 0:31:21]} 13. Bxh6 {[%emt 0:07:08]} Bxh6 {[%emt 0:00:07]} 14. Nd6+ {[%emt 0:00:25]} Ke7 {[%emt 0:05:53]} 15. c5 {[%emt 0:01:19]} Qc7 {[%emt 0:04:27]} 16. b4 {[%emt 0:08:54]} b6 {[%emt 0:01:00]} 17. Nb5 {[%emt 0:12:30]} Qb8 {[%emt 0:00:39]} 18. Nd6 {[%emt 0:26:20]} bxc5 {[%emt 0:04:49]} 19. bxc5 {[%emt 0:00:07]} Ba6 {[%emt 0:00:16]} 20. Re1 {[%emt 0:02:09]} Qb4 {[%emt 0:04:41]} 21. Qb3 {[%emt 0:04:02]} Qxb3 {[%emt 0:00:05]} 22. axb3 {[%emt 0:00:04]} Bd3 {[%emt 0:00:04]} 23. Bf1 {[%emt 0:04:14]} Bc2 {[%emt 0:03:14]} 24. Bc4 {[%emt 0:01:14]} d3 {[%emt 0:04:28]} 25. Nf7 {[%emt 0:01:52]} Bd2 {[%emt 0:06:40]} 0-1

[Event "7th Francophone-ch 2019"]
[Site "Paris"]
[Date "2019.08.05"]
[Round "2.7"]
[White "Prie, Eric"]
[Black "Lemoine, Alexandre"]
[Result "1-0"]
[ECO "A45"]
[WhiteElo "2436"]
[BlackElo "2070"]
[Annotator "NA"]
[PlyCount "59"]
[EventDate "2019.08.04"]
[EventType "swiss"]
[EventCountry "FRA"]
[SourceTitle "playchess.com"]
[Source "ChessBase"]
[SourceQuality "1"]
[TimeControl "40/5400+30:1800+30"]

1. d4 {[%emt 0:12:21]} Nf6 {[%emt 0:00:00]} 2. Bf4 {[%emt 0:00:19]} g6 {[%emt 0:00:08]} 3. Nc3 {[%emt 0:00:09]} d5 {[%emt 0:00:34]} 4. e3 {[%emt 0:00:09]} Bg7 {[%emt 0:00:10]} 5. h4 {[%emt 0:00:33]} h5 {[%emt 0:01:29]} 6. Nf3 {[%emt 0:00:10]} O-O {[%emt 0:01:06]} 7. Ne5 {[%emt 0:04:42]} c5 {[%emt 0:03:44]} 8. Qd2 {[%emt 0:00:09]} cxd4 {[%emt 0:03:32]} 9. exd4 {[%emt 0:00:11]} Nc6 {[%emt 0:03:23]} 10. O-O-O {[%emt 0:01:36]} Bf5 {[%emt 0:04:47]} 11. f3 $11 {[%emt 0:01:08]} Nb4 {[%emt 0:03:44]} 12. Nd3 {[%emt 0:07:37]} Bxd3 {[%emt 0:02:15]} 13. Bxd3 {[%emt 0:00:09]} Qa5 {[%emt 0:00:41]} 14. a3 {[%emt 0:00:41]} Nxd3+ {[%emt 0:01:59]} 15. Qxd3 {[%emt 0:00:09]} Rac8 {[%emt 0:03:48]} 16. Kb1 {[%emt 0:11:15]} Rc4 {[%emt 0:10:32]} 17. Na2 {[%emt 0:07:57]} Rfc8 {[%emt 0:07:10]} 18. c3 {[%emt 0:00:07]} b5 {[%emt 0:20:22]} 19. Rde1 {[%emt 0:07:05]} Qd8 {[%emt 0:02:58]} 20. Qe2 {[%emt 0:08:14]} Qd7 {[%emt 0:04:23]} 21. Bg5 {[%emt 0:01:31]} R8c7 {[%emt 0:08:05]} 22. Bxf6 {[%emt 0:00:54]} Bxf6 {[%emt 0:00:32]} 23. g4 {[%emt 0:00:09]} a5 {[%emt 0:03:07]} 24. Rd1 {[%emt 0:04:40]} b4 {[%emt 0:03:27]} 25. axb4 {[%emt 0:00:12]} axb4 {[%emt 0:00:51]} 26. Nxb4 {[%emt 0:00:08]} Qb5 {[%emt 0:03:05]} 27. Rh2 {[%emt 0:01:36]} hxg4 {[%emt 0:03:34]} 28. fxg4 {[%emt 0:00:12]} Qd7 {[%emt 0:02:51]} 29. Qf3 {[%emt 0:00:35]} Bxd4 {[%emt 0:01:17]} 30. Rxd4 {[%emt 0:00:31]} 1-0

[Event "7th Francophone-ch 2019"]
[Site "Paris"]
[Date "2019.08.05"]
[Round "2.8"]
[White "L'Henoret, Thierry"]
[Black "Rakotomaharo, Fy Antenaina"]
[Result "0-1"]
[ECO "D11"]
[WhiteElo "2064"]
[BlackElo "2419"]
[Annotator "NA"]
[PlyCount "88"]
[EventDate "2019.08.04"]
[EventType "swiss"]
[EventCountry "FRA"]
[SourceTitle "playchess.com"]
[Source "ChessBase"]
[SourceQuality "1"]
[TimeControl "40/5400+30:1800+30"]

1. Nf3 {[%emt 0:00:00]} d5 {[%emt 0:01:07]} 2. d4 {[%emt 0:00:00]} Nf6 {[%emt 0:00:07]} 3. e3 {[%emt 0:00:00]} Bg4 {[%emt 0:01:20]} 4. h3 {[%emt 0:02:01]} Bh5 {[%emt 0:00:58]} 5. c4 {[%emt 0:00:59]} c6 {[%emt 0:03:39]} 6. Nc3 {[%emt 0:00:27]} e6 {[%emt 0:00:22]} 7. g4 {[%emt 0:01:27]} Bg6 {[%emt 0:00:05]} 8. Ne5 {[%emt 0:00:04]} Nfd7 {[%emt 0:00:47]} 9. Nxg6 {[%emt 0:00:42]} hxg6 {[%emt 0:00:01]} 10. cxd5 {[%emt 0:01:11]} cxd5 {[%emt 0:00:51]} 11. Qb3 {[%emt 0:00:36]} Qc8 {[%emt 0:02:52]} 12. Bd2 {[%emt 0:07:14]} Nc6 {[%emt 0:00:14]} 13. Rc1 {[%emt 0:00:52]} Bd6 $11 {[%emt 0:08:34]} 14. Na4 {[%emt 0:21:23]} Qc7 {[%emt 0:17:24]} 15. Bb4 {[%emt 0:07:34]} Rb8 {[%emt 0:07:07]} 16. Bb5 {[%emt 0:08:08]} O-O {[%emt 0:01:21]} 17. O-O {[%emt 0:05:34]} Rfc8 {[%emt 0:01:57]} 18. a3 {[%emt 0:10:12]} g5 {[%emt 0:05:34]} 19. Rc3 {[%emt 0:01:58]} Bxb4 {[%emt 0:05:40]} 20. axb4 {[%emt 0:00:22]} Nf6 {[%emt 0:00:15]} 21. Bd3 {[%emt 0:09:25]} e5 {[%emt 0:12:23]} 22. Rfc1 {[%emt 0:07:40]} exd4 {[%emt 0:00:51]} 23. exd4 {[%emt 0:00:09]} Qd8 {[%emt 0:05:10]} 24. Bf5 {[%emt 0:01:56]} Nxd4 {[%emt 0:00:34]} 25. Rxc8 {[%emt 0:00:24]} Nxb3 {[%emt 0:00:15]} 26. Rxd8+ {[%emt 0:03:46]} Rxd8 {[%emt 0:00:04]} 27. Rd1 {[%emt 0:00:46]} a5 {[%emt 0:02:35]} 28. Bc2 {[%emt 0:00:28]} b5 {[%emt 0:00:03]} 29. Bxb3 {[%emt 0:04:22]} bxa4 {[%emt 0:00:02]} 30. Bxa4 {[%emt 0:00:01]} axb4 {[%emt 0:00:07]} 31. Rd4 {[%emt 0:00:21]} Rb8 {[%emt 0:01:10]} 32. Bc6 {[%emt 0:00:28]} Kf8 {[%emt 0:00:08]} 33. Rd3 {[%emt 0:01:26]} Rd8 {[%emt 0:07:00]} 34. Rd4 {[%emt 0:00:37]} Rc8 {[%emt 0:00:04]} 35. Ba4 {[%emt 0:00:44]} Rc4 {[%emt 0:04:56]} 36. Rd1 {[%emt 0:01:40]} Ke7 {[%emt 0:00:54]} 37. Bb3 {[%emt 0:00:39]} Rc5 {[%emt 0:00:08]} 38. Rd4 {[%emt 0:00:43]} Rb5 {[%emt 0:00:22]} 39. f4 {[%emt 0:01:37]} gxf4 {[%emt 0:00:06]} 40. Rxf4 {[%emt 0:00:11]} Nh7 {[%emt 0:03:44]} 41. h4 {[%emt 0:06:57]} Nf8 {[%emt 0:02:42]} 42. Rf5 {[%emt 0:01:40]} Ke6 {[%emt 0:00:32]} 43. Rg5 {[%emt 0:01:08]} g6 {[%emt 0:01:10]} 44. Bc2 {[%emt 0:03:05]} Nh7 {[%emt 0:03:41]} 0-1

[Event "7th Francophone-ch 2019"]
[Site "Paris"]
[Date "2019.08.05"]
[Round "2.9"]
[White "Dardha, Daniel"]
[Black "Sotelo, Renzo"]
[Result "1-0"]
[ECO "E70"]
[WhiteElo "2420"]
[BlackElo "2046"]
[Annotator "NA"]
[PlyCount "75"]
[EventDate "2019.08.04"]
[EventType "swiss"]
[EventCountry "FRA"]
[SourceTitle "playchess.com"]
[Source "ChessBase"]
[SourceQuality "1"]
[TimeControl "40/5400+30:1800+30"]

1. c4 {[%emt 0:00:00]} Nf6 {[%emt 0:01:11]} 2. Nc3 {[%emt 0:00:06]} g6 {[%emt 0:01:21]} 3. e4 {[%emt 0:00:07]} d6 {[%emt 0:00:28]} 4. d4 {[%emt 0:00:06]} Bg7 {[%emt 0:00:35]} 5. Bd3 {[%emt 0:00:05]} e5 {[%emt 0:00:23]} 6. d5 {[%emt 0:00:20]} a5 {[%emt 0:00:22]} 7. Nge2 {[%emt 0:00:10]} Nbd7 {[%emt 0:01:40]} 8. O-O {[%emt 0:00:16]} O-O {[%emt 0:01:03]} 9. f3 {[%emt 0:01:47]} Nh5 {[%emt 0:03:03]} 10. Be3 {[%emt 0:00:33]} b6 {[%emt 0:15:11]} 11. a3 {[%emt 0:01:50]} f5 {[%emt 0:01:22]} 12. exf5 {[%emt 0:02:08]} gxf5 $14 {[%emt 0:00:13]} 13. b4 {[%emt 0:02:56]} Qe7 {[%emt 0:11:03]} 14. Bc2 {[%emt 0:03:40]} Nf4 {[%emt 0:16:29]} 15. Ng3 {[%emt 0:11:36]} axb4 {[%emt 0:19:20]} 16. axb4 {[%emt 0:00:21]} Rxa1 {[%emt 0:00:07]} 17. Qxa1 {[%emt 0:00:04]} Nxg2 {[%emt 0:01:27]} 18. Kxg2 {[%emt 0:01:06]} f4 {[%emt 0:00:05]} 19. Bd2 {[%emt 0:05:06]} fxg3 {[%emt 0:00:21]} 20. hxg3 {[%emt 0:00:03]} Nf6 {[%emt 0:05:46]} 21. Qb1 {[%emt 0:00:57]} Qf7 {[%emt 0:02:34]} 22. Rh1 {[%emt 0:01:16]} e4 {[%emt 0:05:29]} 23. Nxe4 {[%emt 0:00:24]} Nxe4 {[%emt 0:03:08]} 24. Bxe4 {[%emt 0:00:05]} Bf5 {[%emt 0:01:15]} 25. Bxf5 {[%emt 0:01:17]} Qxf5 {[%emt 0:00:12]} 26. Qxf5 {[%emt 0:00:07]} Rxf5 {[%emt 0:00:09]} 27. b5 {[%emt 0:03:41]} Rf8 {[%emt 0:05:28]} 28. Re1 {[%emt 0:00:07]} Kf7 {[%emt 0:00:11]} 29. Re4 {[%emt 0:10:30]} Ra8 {[%emt 0:00:14]} 30. Bg5 {[%emt 0:00:27]} Bf8 {[%emt 0:01:40]} 31. Kh3 {[%emt 0:00:37]} Kg6 {[%emt 0:01:35]} 32. Kg4 {[%emt 0:00:49]} Kf7 {[%emt 0:01:04]} 33. Kf5 {[%emt 0:01:22]} Ra3 {[%emt 0:00:14]} 34. Bd8 {[%emt 0:00:44]} Rxf3+ {[%emt 0:00:51]} 35. Kg4 {[%emt 0:00:09]} Rb3 {[%emt 0:00:32]} 36. Bxc7 {[%emt 0:00:08]} h5+ {[%emt 0:00:14]} 37. Kxh5 {[%emt 0:00:44]} Rxg3 {[%emt 0:00:17]} 38. Rf4+ {[%emt 0:00:27]} 1-0

[Event "7th Francophone-ch 2019"]
[Site "Paris"]
[Date "2019.08.05"]
[Round "2.10"]
[White "Morice, Ludovic"]
[Black "Piscopo, Pierluigi"]
[Result "1/2-1/2"]
[ECO "B22"]
[WhiteElo "2069"]
[BlackElo "2407"]
[Annotator "NA"]
[PlyCount "68"]
[EventDate "2019.08.04"]
[EventType "swiss"]
[EventCountry "FRA"]
[SourceTitle "playchess.com"]
[Source "ChessBase"]
[SourceQuality "1"]
[TimeControl "40/5400+30:1800+30"]

1. e4 {[%emt 0:00:00]} c5 {[%emt 1:30:30]} 2. Nf3 {[%emt 1:31:00]} e6 {[%emt 0:00:00]} 3. c3 {[%emt 0:00:00]} Nf6 {[%emt 0:00:00]} 4. e5 {[%emt 0:00:00]} Nd5 {[%emt 0:00:00]} 5. g3 {[%emt 0:00:00]} Nc6 {[%emt 0:00:00]} 6. Bg2 {[%emt 0:00:00]} d6 {[%emt 0:00:00]} 7. exd6 {[%emt 0:00:00]} Bxd6 {[%emt 0:00:00]} 8. O-O {[%emt 0:00:00]} O-O {[%emt 0:00:00]} 9. d4 {[%emt 0:00:00]} cxd4 {[%emt 0:00:00]} 10. Nxd4 {[%emt 0:00:00]} Nxd4 {[%emt 0:00:00]} 11. Qxd4 {[%emt 0:00:00]} Qc7 {[%emt 0:00:00]} 12. c4 {[%emt 0:00:00]} Nf6 {[%emt 0:00:00]} 13. Nc3 {[%emt 0:00:00]} Be5 {[%emt 0:00:00]} 14. Bf4 {[%emt 0:00:00]} Bxf4 {[%emt 0:00:00]} 15. Qxf4 {[%emt 0:00:00]} e5 {[%emt 0:00:00]} 16. Qh4 {[%emt 0:00:00]} Be6 {[%emt 0:00:00]} 17. b3 {[%emt 0:00:00]} Rad8 {[%emt 0:00:00]} 18. Ne4 {[%emt 0:00:00]} Nxe4 {[%emt 0:00:00]} 19. Qxe4 {[%emt 0:00:00]} Bc8 {[%emt 0:00:00]} 20. Rfe1 {[%emt 0:00:00]} Rfe8 {[%emt 0:00:00]} 21. Rad1 {[%emt 0:00:00]} h6 {[%emt 0:00:00]} 22. h4 {[%emt 0:00:00]} Rxd1 {[%emt 0:00:00]} 23. Rxd1 {[%emt 0:00:00]} Qa5 {[%emt 0:00:00]} 24. Qc2 {[%emt 0:00:00]} Bg4 {[%emt 0:03:41]} 25. Rd5 {[%emt 0:04:36]} Qe1+ {[%emt 0:01:42]} 26. Kh2 {[%emt 0:00:05]} e4 {[%emt 0:01:23]} 27. Qd2 {[%emt 0:00:56]} Qxd2 {[%emt 0:02:34]} 28. Rxd2 {[%emt 0:00:03]} Re7 {[%emt 0:01:54]} 29. Rd8+ {[%emt 0:05:38]} Kh7 {[%emt 0:00:04]} 30. Bh3 {[%emt 0:00:17]} h5 {[%emt 0:01:46]} 31. Bxg4 {[%emt 0:00:02]} hxg4 {[%emt 0:00:00]} 32. Kg2 {[%emt 0:00:27]} Kg6 {[%emt 0:00:38]} 33. Kf1 {[%emt 0:01:28]} e3 {[%emt 0:00:55]} 34. Rd4 {[%emt 0:00:31]} f5 {[%emt 0:00:05]} 1/2-1/2

[Event "7th Francophone-ch 2019"]
[Site "Paris"]
[Date "2019.08.06"]
[Round "3.1"]
[White "Ralison, Milanto Harifidy"]
[Black "Mastrovasilis, Dimitrios"]
[Result "1/2-1/2"]
[ECO "C48"]
[WhiteElo "2291"]
[BlackElo "2589"]
[Annotator "ChessBase"]
[PlyCount "160"]
[EventDate "2019.08.04"]
[EventType "swiss"]
[EventCountry "FRA"]
[SourceTitle "playchess.com"]
[Source "ChessBase"]
[SourceQuality "1"]
[TimeControl "40/5400+30:1800+30"]

1. e4 {[%emt 0:00:00]} e5 {[%emt 0:01:31]} 2. Nf3 {[%emt 0:00:00]} Nc6 {[%emt 0:00:21]} 3. Nc3 {[%emt 0:00:23]} Nf6 {[%emt 0:00:30]} 4. Bb5 {[%emt 0:00:11]} Bc5 {[%emt 0:00:27]} 5. O-O {[%emt 0:01:51]} O-O {[%emt 0:00:30]} 6. d3 {[%emt 0:08:33]} Nd4 7. Ba4 {[%emt 0:02:46]} d6 8. Nxd4 {[%emt 1:20:16]} Bxd4 {[%emt 0:07:14]} 9. Bg5 {[%emt 0:00:00]} c6 {[%emt 1:23:57]} 10. Rb1 {[%emt 0:01:00]} h6 {[%emt 0:00:30]} 11. Bxf6 {[%emt 0:00:00]} Qxf6 {[%emt 0:00:00]} 12. Ne2 {[%emt 0:00:00]} Bb6 {[%emt 0:01:00]} 13. Kh1 {[%emt 0:01:30]} d5 {[%emt 0:00:00]} 14. exd5 {[%emt 0:00:00]} cxd5 {[%emt 0:00:00]} 15. Bb3 {[%emt 0:01:00]} Be6 {[%emt 0:01:30]} 16. f4 {[%emt 0:00:00]} Rad8 {[%emt 0:00:30]} 17. f5 {[%emt 0:01:00]} Bc8 {[%emt 0:00:00]} 18. Nc3 {[%emt 0:00:00]} e4 {[%emt 0:01:00]} 19. Nxd5 {[%emt 0:00:00]} Qe5 {[%emt 0:00:30]} 20. dxe4 {[%emt 0:00:00]} Qxe4 {[%emt 0:00:00]} 21. c4 {[%emt 0:00:00]} Rfe8 {[%emt 0:00:00]} 22. Qh5 {[%emt 0:00:00]} Bc5 {[%emt 0:00:00]} 23. Rbd1 {[%emt 0:00:00]} Rd6 {[%emt 0:00:00]} 24. h3 {[%emt 0:00:00]} Qe2 {[%emt 0:00:00]} 25. Qh4 {[%emt 0:00:00]} Qe4 {[%emt 0:00:00]} 26. Rf4 {[%emt 0:00:00]} Qe5 {[%emt 0:00:00]} 27. Rdf1 {[%emt 0:00:00]} Bd7 {[%emt 0:00:00]} 28. Bc2 {[%emt 0:00:28]} Qxb2 {[%emt 0:00:00]} 29. Bb1 {[%emt 0:00:19]} Rxd5 {[%emt 0:03:28]} 30. cxd5 {[%emt 0:00:23]} Bd6 {[%emt 0:00:44]} 31. Re4 {[%emt 0:00:22]} Rc8 {[%emt 0:00:43]} 32. Rfe1 {[%emt 0:04:09]} f6 {[%emt 0:00:55]} 33. Rc4 {[%emt 0:00:41]} Rxc4 {[%emt 0:00:35]} 34. Qxc4 {[%emt 0:00:04]} Qf2 {[%emt 0:00:10]} 35. Qe2 {[%emt 0:01:59]} Qg3 {[%emt 0:00:26]} 36. Kg1 {[%emt 0:00:04]} Bc5+ {[%emt 0:00:11]} 37. Kh1 {[%emt 0:00:07]} Bd6 {[%emt 0:00:20]} 38. Kg1 {[%emt 0:00:06]} Bb5 {[%emt 0:00:50]} 39. Qd2 {[%emt 0:01:39]} Qh2+ {[%emt 0:00:39]} 40. Kf2 {[%emt 0:00:05]} Qg3+ {[%emt 0:00:10]} 41. Kg1 {[%emt 0:30:10]} Bc4 {[%emt 0:15:03]} 42. Re4 {[%emt 0:00:00]} Qh2+ {[%emt 0:04:32]} 43. Kf2 {[%emt 0:00:00]} Qg3+ {[%emt 0:00:02]} 44. Kg1 {[%emt 0:00:00]} b5 {[%emt 0:00:02]} 45. a4 {[%emt 0:00:00]} Bc5+ {[%emt 0:02:15]} 46. Kh1 {[%emt 0:00:00]} Bd6 {[%emt 0:00:04]} 47. Kg1 {[%emt 0:00:00]} h5 {[%emt 0:02:06]} 48. axb5 {[%emt 0:00:00]} Qh2+ {[%emt 0:00:28]} 49. Kf2 {[%emt 0:00:00]} Qg3+ {[%emt 0:00:01]} 50. Kg1 {[%emt 0:00:00]} Bxb5 {[%emt 0:00:11]} 51. Bc2 {[%emt 0:00:00]} Bc5+ {[%emt 0:03:02]} 52. Kh1 {[%emt 0:00:00]} Bd6 {[%emt 0:00:03]} 53. Kg1 {[%emt 0:00:00]} h4 {[%emt 0:05:04]} 54. Rg4 {[%emt 0:00:00]} Qe5 {[%emt 0:00:17]} 55. Kf2 {[%emt 0:01:27]} Qa1 {[%emt 0:01:23]} 56. Bd3 {[%emt 0:00:51]} Bg3+ {[%emt 0:02:28]} 57. Ke2 {[%emt 0:01:58]} Be8 {[%emt 0:01:09]} 58. Bc4 {[%emt 0:02:43]} Kh7 {[%emt 0:01:01]} 59. Rd4 {[%emt 0:01:03]} Bh5+ {[%emt 0:00:51]} 60. Kd3 {[%emt 0:00:54]} Qb1+ {[%emt 0:00:07]} 61. Qc2 {[%emt 0:00:49]} Be2+ {[%emt 0:00:36]} 62. Kc3 {[%emt 0:00:17]} Be1+ {[%emt 0:00:23]} 63. Rd2 {[%emt 0:00:08]} Qxc2+ {[%emt 0:01:03]} 64. Kxc2 {[%emt 0:00:06]} Bxc4 {[%emt 0:00:27]} 65. Rd1 {[%emt 0:01:13]} Ba5 {[%emt 0:00:22]} 66. Rd4 {[%emt 0:01:22]} Bb5 {[%emt 0:00:05]} 67. Rxh4+ {[%emt 0:00:10]} Kg8 {[%emt 0:00:02]} 68. Re4 {[%emt 0:00:33]} Kf8 {[%emt 0:01:02]} 69. g4 {[%emt 0:00:43]} Bc7 {[%emt 0:00:39]} 70. Kc3 {[%emt 0:00:46]} a5 {[%emt 0:00:42]} 71. Re6 {[%emt 0:00:43]} Be5+ {[%emt 0:00:15]} 72. Kb3 {[%emt 0:00:07]} Bd7 {[%emt 0:00:33]} 73. Ra6 {[%emt 0:00:07]} a4+ {[%emt 0:00:11]} 74. Kb4 {[%emt 0:00:28]} Ke7 {[%emt 0:00:38]} 75. Kc5 {[%emt 0:00:11]} Bg3 {[%emt 0:00:39]} 76. d6+ {[%emt 0:00:19]} Kf7 {[%emt 0:00:30]} 77. Kd5 {[%emt 0:01:03]} Bf2 {[%emt 0:00:02]} 78. Ra8 {[%emt 0:00:16]} Be3 {[%emt 0:01:26]} 79. Rd8 {[%emt 0:00:33]} Bb5 {[%emt 0:00:13]} 80. Rb8 {[%emt 0:00:16]} Bd7 {[%emt 0:00:07]} 1/2-1/2

[Event "7th Francophone-ch 2019"]
[Site "Paris"]
[Date "2019.08.06"]
[Round "3.2"]
[White "David, Alberto"]
[Black "Dudognon, Thibault"]
[Result "1/2-1/2"]
[ECO "C77"]
[WhiteElo "2553"]
[BlackElo "2247"]
[Annotator "ChessBase"]
[PlyCount "55"]
[EventDate "2019.08.04"]
[EventType "swiss"]
[EventCountry "FRA"]
[SourceTitle "playchess.com"]
[Source "ChessBase"]
[SourceQuality "1"]
[TimeControl "40/5400+30:1800+30"]

1. e4 {[%emt 0:00:00]} e5 {[%emt 0:00:26]} 2. Nf3 {[%emt 0:00:40]} Nc6 {[%emt 0:00:04]} 3. Bb5 {[%emt 0:00:46]} a6 {[%emt 0:00:04]} 4. Ba4 {[%emt 0:00:04]} Nf6 {[%emt 0:00:04]} 5. d3 {[%emt 0:00:59]} d6 {[%emt 0:00:37]} 6. c3 {[%emt 0:00:21]} g6 {[%emt 0:00:39]} 7. O-O {[%emt 0:01:33]} Bg7 {[%emt 0:00:27]} 8. Re1 {[%emt 0:01:17]} O-O {[%emt 0:01:15]} 9. Bg5 {[%emt 0:00:11]} b5 {[%emt 0:04:24]} 10. Bc2 {[%emt 0:01:23]} h6 {[%emt 0:01:27]} 11. Bh4 {[%emt 0:00:11]} Qe8 {[%emt 0:05:09]} 12. a4 {[%emt 0:08:48]} Rb8 {[%emt 0:03:24]} 13. axb5 {[%emt 0:12:10]} axb5 {[%emt 0:00:05]} 14. Bxf6 {[%emt 0:00:04]} Bxf6 {[%emt 0:00:04]} 15. Nbd2 {[%emt 0:00:04]} Nd8 {[%emt 0:07:36]} 16. Nf1 {[%emt 0:00:46]} Ne6 {[%emt 0:03:53]} 17. Ne3 {[%emt 0:03:31]} c6 {[%emt 0:00:29]} 18. d4 {[%emt 0:04:51]} Ng5 {[%emt 0:00:51]} 19. d5 {[%emt 0:02:26]} c5 {[%emt 0:02:12]} 20. Nd2 {[%emt 0:01:55]} Bd8 {[%emt 0:03:53]} 21. c4 {[%emt 0:00:20]} b4 {[%emt 0:03:13]} 22. Ba4 {[%emt 0:01:24]} Qe7 {[%emt 0:00:19]} 23. Bb5 {[%emt 0:05:10]} Nh7 {[%emt 0:02:20]} 24. Ba6 {[%emt 0:13:10]} Bd7 {[%emt 0:00:55]} 25. Bb5 {[%emt 0:00:07]} Bc8 {[%emt 0:00:05]} 26. Ba6 {[%emt 0:13:46]} Bd7 {[%emt 0:00:07]} 27. Bb5 {[%emt 0:00:05]} Bc8 {[%emt 0:00:03]} 28. Ba6 {[%emt 0:00:47]} 1/2-1/2

[Event "7th Francophone-ch 2019"]
[Site "Paris"]
[Date "2019.08.06"]
[Round "3.3"]
[White "Chandesris, Ludovic"]
[Black "Shchekachev, Andrei"]
[Result "0-1"]
[ECO "B22"]
[WhiteElo "2272"]
[BlackElo "2531"]
[Annotator "ChessBase"]
[PlyCount "72"]
[EventDate "2019.08.04"]
[EventType "swiss"]
[EventCountry "FRA"]
[SourceTitle "playchess.com"]
[Source "ChessBase"]
[SourceQuality "1"]
[TimeControl "40/5400+30:1800+30"]

1. e4 {[%emt 0:00:00]} c5 {[%emt 0:00:13]} 2. Nf3 {[%emt 0:00:00]} e6 {[%emt 0:00:16]} 3. c3 {[%emt 0:00:38]} d5 {[%emt 0:01:48]} 4. exd5 {[%emt 0:00:23]} Qxd5 {[%emt 0:00:10]} 5. Na3 {[%emt 0:03:07]} Nf6 {[%emt 0:02:55]} 6. d4 {[%emt 0:01:48]} Be7 {[%emt 0:02:34]} 7. Nb5 {[%emt 0:04:25]} Na6 {[%emt 0:00:11]} 8. Be3 {[%emt 0:05:20]} Ng4 {[%emt 0:12:23]} 9. c4 {[%emt 0:22:56]} Nxe3 {[%emt 0:09:00]} 10. fxe3 {[%emt 0:09:03]} Qd8 {[%emt 0:02:38]} 11. Bd3 {[%emt 0:06:02]} O-O {[%emt 0:03:07]} 12. a3 {[%emt 0:07:45]} Nc7 {[%emt 0:06:09]} 13. Nc3 {[%emt 0:00:52]} Rb8 {[%emt 0:16:24]} 14. Qc2 {[%emt 0:05:04]} h6 {[%emt 0:05:01]} 15. O-O-O {[%emt 0:05:37]} cxd4 {[%emt 0:05:48]} 16. exd4 {[%emt 0:05:57]} Bd7 {[%emt 0:13:12]} 17. Rhf1 {[%emt 0:09:08]} b5 {[%emt 0:03:56]} 18. Ne5 {[%emt 0:00:52]} Be8 {[%emt 0:04:02]} 19. d5 {[%emt 0:02:09]} exd5 {[%emt 0:01:13]} 20. cxd5 {[%emt 0:02:55]} b4 {[%emt 0:04:49]} 21. axb4 {[%emt 0:00:19]} Bxb4 {[%emt 0:00:09]} 22. Nc6 {[%emt 0:03:04]} Bxc6 {[%emt 0:00:44]} 23. dxc6 {[%emt 0:00:05]} Qg5+ {[%emt 0:00:13]} 24. Kb1 {[%emt 0:00:58]} Qa5 {[%emt 0:04:26]} 25. Rf5 {[%emt 0:01:49]} Qb6 {[%emt 0:00:09]} 26. Nd5 {[%emt 0:00:33]} Nxd5 {[%emt 0:00:07]} 27. Rxd5 {[%emt 0:00:04]} a6 {[%emt 0:00:38]} 28. Bf5 {[%emt 0:01:03]} Ba5 {[%emt 0:00:31]} 29. Rc1 {[%emt 0:01:00]} Qb4 {[%emt 0:00:54]} 30. Rd7 {[%emt 0:01:06]} Qf4 {[%emt 0:00:37]} 31. Qc5 {[%emt 0:00:49]} Bb4 {[%emt 0:00:29]} 32. Qd5 {[%emt 0:01:09]} Ba3 {[%emt 0:00:30]} 33. Rc2 {[%emt 0:00:00]} Rb5 {[%emt 0:00:29]} 34. Qxb5 {[%emt 0:00:21]} axb5 {[%emt 0:00:03]} 35. c7 {[%emt 0:00:12]} Qf1+ {[%emt 0:00:31]} 36. Ka2 {[%emt 0:00:39]} Qxf5 {[%emt 0:00:08]} 0-1